fUSD/lending_fUSD_20250214
["ID","MTS","AMOUNT","RATE_DAILY","PERIOD"]
[353093455,1739553042572,-3024.56986566,0.0001,2]
[353093456,1739553042626,-236942.17362435,0.0001,2]
[353093457,1739553042638,-38385.0,0.0001,2]
[353093479,1739553045490,-16754.86881633,0.0001,2]
[353093481,1739553045502,-1554.61046167,0.0001,2]
[353093489,1739553045614,-373133.70752136,0.0001,2]
[353093506,1739553045771,-438.24133158,0.0001,2]
[353093508,1739553082303,682.95764081,0.00020813,60]
[353093509,1739553082577,682.95764081,0.00020813,60]
[353093510,1739553082880,682.95764081,0.00020813,60]
[353093511,1739553083451,682.95764081,0.00020813,60]
[353093512,1739553090080,1000.15,0.00020813,60]
[353093516,1739553162013,500.0,0.00013698,7]
[353093517,1739553181716,400.0,0.0002,120]
[353093518,1739553192965,556.6544,8.699e-05,2]
[353093520,1739553245559,155.0,8.699e-05,3]
[353093521,1739553248078,1163.05,8.219e-05,2]
[353093522,1739553306249,156.0,8.219e-05,3]
[353093523,1739553364921,156.0,8.219e-05,3]
[353093524,1739553410638,900.0,0.0002,120]
[353093525,1739553424861,156.0,8.219e-05,3]
[353093526,1739553485617,156.0,8.219e-05,3]
[353093527,1739553547570,156.0,8.219e-05,3]
[353093528,1739553608938,156.0,8.219e-05,3]
[353093529,1739553664851,156.0,8.219e-05,3]
[353093530,1739553724321,156.0,8.219e-05,3]
[353093531,1739553785520,156.0,8.219e-05,3]
[353093532,1739553844171,156.0,8.219e-05,3]
[353093533,1739553906488,156.0,8.219e-05,3]
[353093534,1739553964119,156.0,8.219e-05,3]
[353093537,1739554013142,-4935.13054245,8.836e-05,2]
[353093538,1739554024719,156.0,8.219e-05,3]
[353093539,1739554037012,1000.0,8.751e-05,2]
[353093540,1739554084624,690.09532473,0.00015,10]
[353093542,1739554113273,250.0,8.78e-05,2]
[353093543,1739554122215,11319.03903614,0.00020786,90]
[353093556,1739554231825,-300.0,8.835e-05,2]
[353093557,1739554231834,-1169.69864955,8.836e-05,2]
[353093558,1739554231930,-17521.486008,8.836e-05,2]
[353093559,1739554231940,-200.0,8.84e-05,2]
[353093560,1739554231950,-181.14023265,8.844e-05,2]
[353093561,1739554231960,-500.0,8.851e-05,2]
[353093562,1739554231971,-849.8483,8.851e-05,2]
[353093563,1739554231983,-200.0,8.852e-05,2]
[353093564,1739554231992,-830.78410377,8.937e-05,2]
[353093565,1739554232017,-18061.99986608,8.937e-05,2]
[353093566,1739554232029,-5007.21603015,8.937e-05,2]
[353093567,1739554232038,-330.6067,8.973e-05,2]
[353093568,1739554232048,-775.59,8.98e-05,2]
[353093569,1739554232058,-150.0,9e-05,2]
[353093570,1739554232067,-1386.52,9.104e-05,2]
[353093571,1739554232076,-1600.0,9.199e-05,2]
[353093572,1739554232086,-500.0,9.205e-05,2]
[353093573,1739554232096,-163.55,9.232e-05,2]
[353093574,1739554232106,-150.0,9.285e-05,2]
[353093575,1739554232115,-300.0,9.285e-05,2]
[353093576,1739554232125,-334.63,9.294e-05,2]
[353093577,1739554232135,-218.16,9.404e-05,2]
[353093578,1739554232146,-500.0,9.562e-05,2]
[353093579,1739554232163,-181.12,9.573e-05,2]
[353093580,1739554232173,-250.0,9.702e-05,2]
[353093581,1739554232183,-420.0,9.718e-05,2]
[353093582,1739554232192,-200.0,9.719e-05,2]
[353093583,1739554232202,-300.0,9.725e-05,2]
[353093585,1739554232211,-1000.0,9.844e-05,2]
[353093586,1739554232222,-150.0,9.972e-05,2]
[353093587,1739554232232,-500.0,9.973e-05,2]
[353093588,1739554232242,-162.99223731,9.973e-05,2]
[353093589,1739554232251,-165.06157355,9.973e-05,2]
[353093590,1739554232261,-500.0,9.973e-05,2]
[353093591,1739554232271,-9592.57042503,9.98e-05,2]
[353093594,1739554232328,-13249.43920998,9.98e-05,2]
[353093596,1739554232340,-27849.58213943,9.98e-05,2]
[353093597,1739554237585,-16867.47502827,9.98e-05,2]
[353093598,1739554237594,-737.5656766,9.992e-05,2]
[353093599,1739554237604,-294.42008834,9.992e-05,2]
[353093600,1739554237614,-3010.4498054,9.992e-05,2]
[353093601,1739554237624,-2474.859,9.999e-05,2]
[353093602,1739554237633,-154.359,9.999e-05,2]
[353093603,1739554237642,-559.57,9.999e-05,2]
[353093604,1739554237651,-156663.64973179,0.0001,2]
[353093605,1739554237663,-1958.40282373,0.0001,2]
[353093606,1739554237686,-3600.0,0.0001,2]
[353093607,1739554237697,-6337.06,0.0001,2]
[353093608,1739554237715,-1567.45664719,0.0001,2]
[353093609,1739554237755,-13781.40426998,0.0001,2]
[353093610,1739554237767,-1998.33255008,0.0001,2]
[353093611,1739554237868,-735425.88756502,0.0001,2]
[353093649,1739554240284,-1948.54836642,0.0001,2]
[353093650,1739554240300,-320.53214284,0.0001,2]
[353093651,1739554240325,-9754.06386023,0.0001,2]
[353093659,1739554243244,-10270.48075039,0.0001,2]
[353093660,1739554243255,-236942.17362435,0.0001,2]
[353093661,1739554243267,-411.545,0.0001,2]
[353093670,1739554245651,-1240.7222775,0.0001,2]
[353093671,1739554245704,-13873.80416535,0.0001,2]
[353093672,1739554245814,-4706.11589993,0.0001,2]
[353093673,1739554245925,-341.95908273,0.0001,2]
[353093674,1739554266575,200.0,0.00020786,60]
[353093675,1739554426926,1104.89,8.219e-05,2]
[353093677,1739554690517,300.000001,0.00013,30]
[353093699,1739555431812,-302.9424,8.836e-05,2]
[353093700,1739555431823,-200.0,8.844e-05,2]
[353093701,1739555431833,-497.0576,8.851e-05,2]
[353093702,1739555431866,-455.0229,8.851e-05,2]
[353093703,1739555431876,-200.0,8.915e-05,2]
[353093704,1739555431885,-250.0,9.049e-05,2]
[353093705,1739555431895,-2194.9771,9.174e-05,2]
[353093706,1739555431936,-5785.77617514,9.174e-05,2]
[353093707,1739555431948,-339.10443375,9.174e-05,2]
[353093708,1739555431960,-692.5626787,9.174e-05,2]
[353093709,1739555431971,-14887.57961241,9.174e-05,2]
[353093710,1739555431980,-693.26,9.184e-05,2]
[353093711,1739555431990,-1000.0,9.217e-05,2]
[353093712,1739555431999,-174.35,9.254e-05,2]
[353093713,1739555432011,-538.0,9.507e-05,2]
[353093714,1739555432021,-150.0,9.534e-05,2]
[353093715,1739555432031,-500.0,9.562e-05,2]
[353093716,1739555432041,-165.89,9.644e-05,2]
[353093717,1739555432051,-200.0,9.719e-05,2]
[353093718,1739555432061,-165.06157355,9.973e-05,2]
[353093719,1739555432072,-500.0,9.973e-05,2]
[353093720,1739555432082,-500.0,9.973e-05,2]
[353093721,1739555432092,-1559.07,9.99e-05,2]
[353093722,1739555432101,-150.0,9.991e-05,2]
[353093723,1739555432111,-9914.7273325,9.992e-05,2]
[353093724,1739555432122,-3324.0383268,9.992e-05,2]
[353093725,1739555432133,-499.25474509,9.994e-05,2]
[353093726,1739555432143,-1895.22,9.999e-05,2]
[353093727,1739555432153,-432.44852163,9.999e-05,2]
[353093728,1739555432163,-500.0,9.999e-05,2]
[353093729,1739555432172,-500.0,9.999e-05,2]
[353093730,1739555432182,-441.0744725,9.999e-05,2]
[353093731,1739555432191,-1540.0,0.0001,2]
[353093732,1739555432201,-14997.56143782,0.0001,2]
[353093733,1739555432218,-412.75,0.0001,2]
[353093734,1739555432230,-586.69855898,0.0001,2]
[353093736,1739555432274,-67039.6047972,0.0001,2]
[353093737,1739555432287,-3081.97164808,0.0001,2]
[353093738,1739555432299,-29932.55788102,0.0001,2]
[353093739,1739555432311,-88613.3693652,0.0001,2]
[353093740,1739555432346,-3490.07497671,0.0001,2]
[353093741,1739555432358,-96042.94739788,0.0001,2]
[353093742,1739555432498,-684.04122533,0.0001,2]
[353093807,1739555437869,-207.53155462,9.049e-05,2]
[353093808,1739555437879,-181.82578403,0.0001,2]
[353093809,1739555437892,-953.30203135,0.0001,2]
[353093810,1739555437932,-136816.10535437,0.0001,2]
[353093811,1739555437944,-1960.6310619,0.0001,2]
[353093812,1739555437982,-3341.98188124,0.0001,2]
[353093813,1739555438039,-9774.009,0.0001,2]
[353093814,1739555438095,-18608.42834453,0.0001,2]
[353093815,1739555438108,-5511.60000001,0.0001,2]
[353093816,1739555438149,-6419.93925167,0.0001,2]
[353093817,1739555438161,-163193.36090503,0.0001,2]
[353093832,1739555440810,-207.53155462,9.184e-05,2]
[353093833,1739555440820,-858.53456668,9.992e-05,2]
[353093834,1739555440830,-3675.1813058,0.0001,2]
[353093835,1739555440842,-1656.06521838,0.0001,2]
[353093836,1739555440854,-506.3991912,0.0001,2]
[353093837,1739555440866,-12245.06,0.0001,2]
[353093838,1739555440978,-5282.46171585,0.0001,2]
[353093839,1739555441169,-974.12804299,0.0001,2]
[353093857,1739555442963,-8888.38977208,0.0001,2]
[353093858,1739555443069,-25582.17311311,0.0001,2]
[353093865,1739555444885,1409.0586,8.699e-05,2]
[353093873,1739555445879,-520.0,9.95e-05,2]
[353093874,1739555445889,-78.62832,0.0001,2]
[353093875,1739555445901,-1452.0,0.0001,2]
[353093876,1739555446450,-8726.66030523,0.0001,2]
[353093877,1739555446473,-98377.0,0.0001,2]
[353093878,1739555446496,-605.35909844,0.0001,2]
[353093879,1739555446510,-690.22500286,0.0001,2]
[353093880,1739555446521,-623.55846254,0.0001,2]
[353093881,1739555446549,-1087.23851416,0.0001,2]
[353093882,1739555468633,200.0,0.00020782,60]
[353093883,1739555468951,200.0,0.00020782,60]
[353093884,1739555469275,200.0,0.00020782,60]
[353093885,1739555499013,202.30039854,0.00013699,7]
[353093891,1739555707761,505.80145576,0.00020782,60]
[353093892,1739555708124,505.80145576,0.00020782,60]
[353093893,1739555708625,505.80145576,0.00020782,60]
[353093894,1739555709077,505.80145576,0.00020782,60]
[353093895,1739555718472,200.0,0.00020782,60]
[353093896,1739555718766,200.0,0.00020782,60]
[353093897,1739555719104,200.0,0.00020782,60]
[353093898,1739555737935,388.37938699,0.00020782,60]
[353093899,1739555738262,388.37938699,0.00020782,60]
[353093900,1739555738628,388.37938699,0.00020782,60]
[353093901,1739555739242,388.37938699,0.00020782,60]
[353093902,1739555771649,228.714,8.219e-05,2]
[353093903,1739555771673,863.646,8.219e-05,2]
[353093904,1739555782703,5000.0,0.00015,15]
[353093905,1739555810725,5000.0,0.00015,15]
[353093906,1739555838567,50000.0,0.00015,15]
[353093907,1739555993532,-300.0,8.972e-05,2]
[353093908,1739555993557,-9039.5762,8.973e-05,2]
[353093909,1739555993586,-660.4238,8.973e-05,2]
[353093910,1739556257292,-211.7401,8.973e-05,2]
[353093911,1739556257315,-200.0,8.973e-05,2]
[353093912,1739556257338,-182.79,9.011e-05,2]
[353093913,1739556257362,-200.0,9.027e-05,2]
[353093914,1739556257384,-305.83,9.068e-05,2]
[353093915,1739556257407,-517.16,9.109e-05,2]
[353093916,1739556257433,-1565.13,9.124e-05,2]
[353093917,1739556257457,-269.19,9.157e-05,2]
[353093918,1739556257479,-1910.5272,9.18e-05,2]
[353093919,1739556257501,-495.69,9.18e-05,2]
[353093920,1739556257521,-1910.5272,9.314e-05,2]
[353093921,1739556257543,-7424.66238168,9.489e-05,2]
[353093922,1739556257566,-182.79,9.512e-05,2]
[353093923,1739556257590,-2308.97759068,9.8e-05,2]
[353093924,1739556257613,-480.72957157,9.8e-05,2]
[353093925,1739556257636,-200.0,9.87e-05,2]
[353093926,1739556257657,-5363.0,9.973e-05,2]
[353093927,1739556257681,-162.99223731,9.973e-05,2]
[353093928,1739556257705,-500.0,9.973e-05,2]
[353093929,1739556257729,-500.0,9.973e-05,2]
[353093930,1739556257756,-1979.887,9.973e-05,2]
[353093931,1739556257779,-154.359,9.973e-05,2]
[353093932,1739556257803,-150.0,9.991e-05,2]
[353093933,1739556257825,-19356.8729001,9.992e-05,2]
[353093934,1739556257849,-6764.7900959,9.992e-05,2]
[353093935,1739556257873,-1837.09,9.999e-05,2]
[353093936,1739556257896,-1228.0,0.0001,2]
[353093937,1739556257919,-3430643.93317888,0.0001,2]
[353093938,1739556257940,-441.96209879,0.0001,2]
[353093939,1739556257963,-2131703.8621316,0.0001,2]
[353093940,1739556257985,-708174.75917415,0.0001,2]
[353093941,1739556258007,-214.68929897,0.0001,2]
[353093942,1739556258030,-400.37220069,0.0001,2]
[353093943,1739556258053,-334.68213529,0.0001,2]
[353093944,1739556258075,-103160.67253106,0.0001,2]
[353093945,1739556258099,-585.60658451,0.0001,2]
[353093946,1739556258121,-406.30848458,0.0001,2]
[353093947,1739556258144,-406.30848458,0.0001,2]
[353093948,1739556258166,-406.30848458,0.0001,2]
[353093949,1739556258188,-3162.67650388,0.0001,2]
[353093950,1739556258210,-2144.25492,0.0001,2]
[353093951,1739556258232,-336.19257896,0.0001,2]
[353093952,1739556258820,406.22692264,0.0001,2]
[353093954,1739556261777,1112.0,0.0001,2]
[353093956,1739556267117,13490.3708802,9.992e-05,2]
[353093957,1739556273108,1311.69296,0.0001,2]
[353093958,1739556315870,1786.8791,0.0001,2]
[353093959,1739556358670,1093.07747,0.0001,2]
[353093960,1739556401669,1489.06592,0.0001,2]
[353093961,1739556428607,432.229969,9.996e-05,2]
[353093962,1739556454538,1000.0,9.974e-05,2]
[353093963,1739556454615,1279.6008856,9.996e-05,2]
[353093964,1739556463556,910.89789,0.0001,2]
[353093965,1739556485074,2113.4502614,9.996e-05,2]
[353093966,1739556488006,-165.94,0.00010002,2]
[353093967,1739556488029,-200.0,0.00010007,2]
[353093968,1739556488053,-182.79,0.00010012,2]
[353093969,1739556488076,-200.0,0.00010078,2]
[353093970,1739556488097,-249.2057364,0.000101,2]
[353093971,1739556488119,-198.36614157,0.00010136,2]
[353093972,1739556488141,-1837.09,0.00010136,2]
[353093973,1739556488164,-443.34,0.00010137,2]
[353093974,1739556488187,-165.53,0.00010137,2]
[353093975,1739556488209,-179.31,0.00010137,2]
[353093976,1739556488231,-150.0,0.00010156,2]
[353093977,1739556488252,-1970.74,0.00010156,2]
[353093978,1739556488273,-300.0,0.00010156,2]
[353093979,1739556488296,-150.0,0.00010192,2]
[353093980,1739556488316,-150.0,0.00010192,2]
[353093981,1739556488337,-150.0,0.00010192,2]
[353093982,1739556488358,-150.0,0.00010192,2]
[353093983,1739556488379,-335.94,0.00010242,3]
[353093984,1739556488401,-416.96859791,0.00010252,2]
[353093985,1739556488424,-170.69,0.00010257,2]
[353093986,1739556488447,-1565.13,0.00010265,2]
[353093987,1739556488468,-1837.09,0.00010273,2]
[353093988,1739556488489,-23900.0,0.00010385,2]
[353093989,1739556488509,-1000.0,0.000104,2]
[353093990,1739556488531,-1000.0,0.000104,2]
[353093991,1739556488553,-1837.09,0.0001041,2]
[353093992,1739556488575,-1092.36,0.00010442,2]
[353093993,1739556488596,-182.79,0.00010513,2]
[353093994,1739556488617,-517.149428,0.00010521,2]
[353093995,1739556488639,-150.0,0.00010542,2]
[353093996,1739556488660,-150.0,0.00010546,2]
[353093997,1739556488681,-1837.09,0.00010547,2]
[353093998,1739556488702,-165.94,0.00010553,2]
[353093999,1739556488723,-168.12,0.00010554,2]
[353094000,1739556489015,-334.68213527,0.0001064,2]
[353094001,1739556489036,-416.96859791,0.00010662,2]
[353094002,1739556489059,-1837.09,0.00010684,2]
[353094003,1739556489080,-858.53456668,0.00010699,2]
[353094004,1739556489102,-1837.09,0.00010821,2]
[353094005,1739556489123,-416.96859791,0.00010903,2]
[353094006,1739556489145,-1837.09,0.00010958,2]
[353094007,1739556489167,-200.0,0.00010959,2]
[353094008,1739556489188,-200.0,0.00010959,2]
[353094009,1739556489209,-200.0,0.00010959,2]
[353094010,1739556489231,-548.29,0.00010959,2]
[353094011,1739556489251,-816.78,0.00010959,2]
[353094012,1739556489272,-416.96859794,0.00010976,2]
[353094013,1739556489295,-150.0,0.00010978,2]
[353094014,1739556489317,-1211.7766314,0.00010999,2]
[353094015,1739556506385,1240.88826,0.00010999,2]
[353094016,1739556523649,150.0,0.00010959,2]
[353094017,1739556532887,807.8510876,0.00010999,2]
[353094018,1739556541251,-16849.9792475,0.00011,2]
[353094019,1739556541274,-1000.0,0.00011,2]
[353094020,1739556541298,-1000.0,0.00011,2]
[353094021,1739556541320,-1000.0,0.00011,2]
[353094022,1739556541349,-200.0,0.00011003,2]
[353094023,1739556541372,-182.79,0.00011013,2]
[353094024,1739556541394,-1837.09,0.00011095,2]
[353094025,1739556541417,-43841.70798832,0.00011099,2]
[353094026,1739556541438,-165.94,0.00011103,2]
[353094027,1739556541460,-170.69,0.00011104,2]
[353094028,1739556541483,-1000.0,0.00011221,2]
[353094029,1739556541505,-1837.09,0.00011232,2]
[353094030,1739556541527,-1837.09,0.00011369,2]
[353094031,1739556541548,-334.68213527,0.00011379,2]
[353094032,1739556541570,-1000.0,0.000114,2]
[353094033,1739556541594,-151.0,0.000114,2]
[353094034,1739556541615,-151.0,0.000114,2]
[353094035,1739556541637,-1565.13,0.00011405,2]
[353094036,1739556541658,-150.49533966,0.000115,5]
[353094037,1739556541679,-1000.0,0.000115,2]
[353094038,1739556541699,-858.53456668,0.00011506,2]
[353094039,1739556541720,-1837.09,0.00011506,2]
[353094040,1739556541741,-266.89,0.00011507,2]
[353094041,1739556541763,-182.79,0.00011514,2]
[353094042,1739556541783,-1837.09,0.00011643,2]
[353094043,1739556541804,-150.0,0.00011646,2]
[353094044,1739556541826,-165.94,0.00011653,2]
[353094045,1739556541858,-1000.0,0.00011684,2]
[353094046,1739556541887,-186.83660641,0.00011688,2]
[353094047,1739556541910,-150.0,0.00011688,2]
[353094048,1739556541934,-150.0,0.00011727,2]
[353094049,1739556541955,-1837.09,0.0001178,2]
[353094050,1739556541977,-150.0,0.0001182,2]
[353094051,1739556541999,-986.27,0.0001182,2]
[353094052,1739556542037,-877.54,0.0001182,2]
[353094053,1739556542059,-986.27,0.0001182,2]
[353094054,1739556542081,-174.08,0.0001182,2]
[353094055,1739556542105,-986.27,0.0001182,2]
[353094056,1739556542126,-986.27,0.0001182,2]
[353094057,1739556542151,-985.37,0.0001182,2]
[353094058,1739556542178,-320.29013915,0.000119,2]
[353094059,1739556542204,-1837.09,0.00011917,2]
[353094060,1739556542231,-170.69,0.0001195,2]
[353094061,1739556542253,-150.0,0.0001197,2]
[353094062,1739556542277,-150.0,0.00011998,2]
[353094063,1739556542298,-1000.0,0.00012,2]
[353094064,1739556542319,-1000.0,0.00012,2]
[353094065,1739556542343,-5000.12345678,0.00012,4]
[353094066,1739556542364,-1593.89027562,0.00012,3]
[353094067,1739556543167,150.0,0.00010999,2]
[353094068,1739556543238,190.09480713,0.00011757,2]
[353094074,1739556549260,759.08157,0.00012,2]
[353094075,1739556577852,538.5673917,0.0001176,2]
[353094076,1739556597771,-6512.4657968,0.00012006,2]
[353094077,1739556597793,-182.79,0.00012015,2]
[353094078,1739556597815,-168.34,0.00012032,2]
[353094079,1739556597840,-255.0,0.00012044,2]
[353094080,1739556597864,-1837.09,0.00012054,2]
[353094081,1739556597888,-45410.16,0.00012055,2]
[353094082,1739556597908,-209.432879,0.00012055,2]
[353094083,1739556597932,-209.432879,0.00012055,2]
[353094084,1739556597954,-1837.09,0.00012191,2]
[353094085,1739556597976,-1000.0,0.00012254,2]
[353094086,1739556597998,-1008.0,0.00012305,2]
[353094087,1739556598021,-1109.0,0.00012305,2]
[353094088,1739556598045,-858.53456668,0.00012313,2]
[353094089,1739556598067,-1837.09,0.00012328,2]
[353094090,1739556598091,-250.277342,0.00012329,2]
[353094091,1739556598115,-151.0,0.00012329,2]
[353094092,1739556598137,-151.0,0.00012329,2]
[353094093,1739556598161,-151.0,0.00012329,2]
[353094094,1739556598182,-151.0,0.00012329,2]
[353094095,1739556598203,-151.0,0.00012329,2]
[353094096,1739556598225,-152.083236,0.00012329,2]
[353094097,1739556598248,-151.0,0.00012329,2]
[353094098,1739556598268,-151.296128,0.00012329,2]
[353094099,1739556598289,-151.0,0.000124,2]
[353094100,1739556598310,-151.0,0.000124,2]
[353094101,1739556598332,-151.0,0.000124,2]
[353094102,1739556598353,-216.510495,0.000124,2]
[353094103,1739556598374,-1837.09,0.00012465,2]
[353094104,1739556598397,-1000.0,0.00012468,2]
[353094105,1739556598418,-20000.0,0.000125,2]
[353094106,1739556598439,-1000.0,0.000125,2]
[353094107,1739556598460,-1064.0,0.000125,2]
[353094108,1739556598482,-182.79,0.00012515,2]
[353094109,1739556598503,-1002.0,0.00012541,2]
[353094110,1739556598525,-1565.13,0.00012546,2]
[353094111,1739556598546,-1837.09,0.00012602,2]
[353094112,1739556598567,-17267.92,0.00012603,2]
[353094113,1739556598589,-309.16,0.00012631,2]
[353094114,1739556598610,-1092.36,0.00012664,2]
[353094115,1739556598631,-150.0,0.00012675,2]
[353094116,1739556598655,-241.001,0.00012675,2]
[353094117,1739556598678,-150.0,0.00012675,2]
[353094118,1739556598700,-216.014,0.00012675,2]
[353094119,1739556598720,-150.553,0.00012675,2]
[353094120,1739556598742,-3921.577,0.00012675,2]
[353094121,1739556598764,-231.981,0.00012675,2]
[353094122,1739556598786,-1273.0,0.00012675,2]
[353094123,1739556598808,-2025.0,0.00012675,2]
[353094124,1739556598829,-569.0,0.00012675,2]
[353094125,1739556598854,-638.0,0.00012675,2]
[353094126,1739556598875,-150.0,0.00012675,2]
[353094127,1739556598902,-1786.0,0.00012675,2]
[353094128,1739556598926,-2956.0,0.00012675,2]
[353094129,1739556598949,-1265.0,0.00012675,2]
[353094130,1739556598972,-908.0,0.00012675,2]
[353094131,1739556598993,-783.0,0.00012675,2]
[353094132,1739556599014,-4027.0,0.00012675,2]
[353094133,1739556599036,-539.0,0.00012675,2]
[353094134,1739556599059,-182.0217411,0.00012686,2]
[353094135,1739556599081,-1837.09,0.00012739,2]
[353094136,1739556599106,-163.67677193,0.000128,2]
[353094137,1739556599128,-9619.16886248,0.000128,2]
[353094138,1739556599153,-336.19257892,0.000128,2]
[353094139,1739556599176,-3997.84237867,0.00012805,2]
[353094140,1739556599200,-9619.16886247,0.00012811,2]
[353094141,1739556599225,-9619.16886247,0.00012822,2]
[353094142,1739556599250,-9619.16886247,0.00012833,2]
[353094143,1739556599274,-9619.16886247,0.00012844,2]
[353094144,1739556599296,-495.69,0.00012852,2]
[353094145,1739556599320,-9619.16886247,0.00012856,2]
[353094146,1739556599344,-9619.16886247,0.00012867,2]
[353094147,1739556599366,-1837.09,0.00012876,2]
[353094148,1739556599388,-9619.16886247,0.00012878,2]
[353094149,1739556599410,-9619.16886247,0.00012889,2]
[353094150,1739556599431,-300.0,0.00012899,2]
[353094151,1739556599453,-316.02810239,0.00012899,2]
[353094152,1739556599475,-300.0,0.00012899,2]
[353094153,1739556599496,-300.0,0.00012899,2]
[353094154,1739556599517,-300.0,0.00012899,2]
[353094155,1739556599538,-300.0,0.00012899,2]
[353094156,1739556599560,-454824.28111286,0.000129,2]
[353094157,1739556621609,-1034.07355,0.00012,2]
[353094158,1739556621632,-200.0,0.0001245,2]
[353094159,1739556621654,-3915.0,0.00012595,2]
[353094160,1739556621676,-150.0,0.00012595,2]
[353094161,1739556621700,-200.0,0.00012774,2]
[353094162,1739556621724,-16006.79645,0.000129,2]
[353094186,1739556632045,-1008.0,0.00012595,2]
[353094188,1739556632055,-359.0449278,0.00012642,2]
[353094190,1739556632066,-1980.9250722,0.000129,2]
[353094192,1739556632078,-5163.90525654,0.000129,2]
[353094193,1739556632090,-5695.5,0.000129,2]
[353094194,1739556632117,-543.86946,0.000129,2]
[353094195,1739556632170,-1336.85171448,0.000129,2]
[353094196,1739556632331,-996.94,0.000129,2]
[353094197,1739556632344,-1361.11506792,0.000129,2]
[353094198,1739556632494,-4038.08333822,0.000129,2]
[353094682,1739556637991,-41689.56205986,0.000129,2]
[353094684,1739556638003,-5550.72752828,0.000129,2]
[353094686,1739556638016,-3950.78390254,0.000129,2]
[353094691,1739556638053,-2817.00043207,0.000129,2]
[353094693,1739556638066,-980.23689066,0.000129,2]
[353094695,1739556638079,-47089.23180688,0.000129,2]
[353094710,1739556638219,-68297.72830248,0.000129,2]
[353094712,1739556638230,-1002.0,0.000129,2]
[353094714,1739556638240,-151.253839,0.000129,2]
[353094716,1739556638250,-209.432879,0.000129,2]
[353094718,1739556638259,-209.432879,0.000129,2]
[353094720,1739556638269,-184.11248,0.000129,2]
[353094722,1739556638279,-231.06757,0.000129,2]
[353094724,1739556638289,-151.0,0.000129,2]
[353094726,1739556638298,-151.0,0.000129,2]
[353094728,1739556638308,-287.239769,0.000129,2]
[353094730,1739556638318,-151.0,0.000129,2]
[353094732,1739556638328,-151.380027,0.000129,2]
[353094734,1739556638336,-207.630526,0.000129,2]
[353094736,1739556638345,-151.689921,0.000129,2]
[353094738,1739556638355,-151.0,0.000129,2]
[353094740,1739556638364,-14867.55254213,0.000129,2]
[353094755,1739556638496,-2336.68164723,0.000129,2]
[353094909,1739556640215,-1692.04651401,0.000129,2]
[353094914,1739556640278,-1421.0750025,0.000129,2]
[353094925,1739556640437,-4207.18448103,0.000129,2]
[353094927,1739556640450,-346.48450002,0.000129,2]
[353094931,1739556640494,-17390.46396203,0.000129,2]
[353094933,1739556640504,-462.86144864,0.000129,2]
[353094934,1739556640514,-1117.73723148,0.000129,2]
[353094936,1739556640523,-325.64389417,0.000129,2]
[353094938,1739556640533,-140.1645074,0.000129,2]
[353094974,1739556642324,-1859.8354926,0.000129,2]
[353094975,1739556642334,-500.0,0.000129,2]
[353094976,1739556642344,-500.0,0.000129,2]
[353094977,1739556642354,-2799.5902462,0.000129,2]
[353094978,1739556642364,-500.0,0.000129,2]
[353094979,1739556642374,-500.0,0.000129,2]
[353094980,1739556642384,-500.0,0.000129,2]
[353094981,1739556642395,-500.0,0.000129,2]
[353094982,1739556642405,-500.0,0.000129,2]
[353094983,1739556642416,-500.0,0.000129,2]
[353094984,1739556642428,-500.0,0.000129,2]
[353094985,1739556642438,-500.0,0.000129,2]
[353094986,1739556642447,-500.0,0.000129,2]
[353094987,1739556642457,-500.0,0.000129,2]